bitfinex-derivatives/quotes_SOLF0:USTF0_20240927
["timestamp","ask_amount","ask_price","bid_price","bid_amount"]
[1727474594936,3.1689,157.75,157.73,15.2]
[1727474595934,3.1686,157.76,157.73,15.2]
[1727474596236,3.1686,157.76,157.75,9.74]
[1727474596540,1.3543,157.83,157.75,9.74]
[1727474596738,11.0943,157.83,157.79,9.74]
[1727474598435,3.1674,157.82,157.79,9.74]
[1727474599033,3.1676,157.81,157.79,9.74]
[1727474599234,9.74,157.81,157.77,9.74]
[1727474599435,9.74,157.81,157.76,9.74]
[1727474599636,9.74,157.78,157.7,5.1556]
[1727474599941,9.74,157.79,157.74,9.74]
[1727474600240,3.1684,157.77,157.74,9.74]
[1727474601133,3.1684,157.77,157.7,5.1556]
[1727474601134,1.3543,157.83,157.76,9.74]
[1727474601335,9.74,157.81,157.75,9.74]
[1727474601546,9.74,157.78,157.73,9.74]
[1727474602231,1.3543,157.83,157.7,5.1556]
[1727474602232,15.22,157.8,157.71,15.22]
[1727474602942,3.1687,157.76,157.71,18.3895]
[1727474603337,15.22,157.78,157.7,5.1556]
[1727474604949,3.1689,157.75,157.7,5.1556]
[1727474605833,3.1689,157.75,157.7,8.3253]
[1727474606034,3.1695,157.72,157.7,5.1556]
[1727474606234,15.22,157.78,157.7,2.5]
[1727474606442,1.3645,157.77,157.7,2.5]
[1727474606646,3.1694,157.72,157.7,2.5]
[1727474606847,1.3645,157.77,157.7,2.5]
[1727474607042,1.3645,157.77,157.71,15.22]
[1727474607346,3.1683,157.77,157.71,15.22]
[1727474607547,15.22,157.8,157.71,15.22]
[1727474607946,3.1689,157.75,157.71,15.22]
[1727474609852,3.1689,157.75,157.71,18.3895]
[1727474611453,3.169,157.74,157.71,18.3895]
[1727474616761,15.22,157.78,157.7,2.5]
[1727474616962,1.2945,157.77,157.7,2.5]
[1727474617166,3.9162,157.77,157.7,2.5]
[1727474617465,3.1695,157.72,157.7,2.5]
[1727474618255,3.1691,157.74,157.7,2.5]
[1727474618562,3.9162,157.77,157.7,2.5]
[1727474620362,3.1691,157.74,157.7,2.5]
[1727474620765,3.9162,157.77,157.7,2.5]
[1727474622863,3.1691,157.74,157.7,2.5]
[1727474623563,3.1689,157.75,157.7,2.5]
[1727474623764,1.2945,157.77,157.71,15.22]
[1727474623970,80.01157565,157.81,157.71,15.22]
[1727474624175,3.1685,157.77,157.74,9.74]
[1727474625678,64.79157565,157.81,157.75,9.74]
[1727474625973,64.79157565,157.81,157.79,9.74]
[1727474626159,64.79157565,157.81,157.73,2.5941]
[1727474626360,9.74,157.79,157.74,9.74]
[1727474627068,3.1682,157.78,157.75,9.74]
[1727474628372,3.168,157.79,157.75,9.74]
[1727474628869,9.74,157.8,157.75,9.74]
[1727474628870,3.1682,157.78,157.75,9.74]
[1727474636566,9.74,157.79,157.73,12.3341]
[1727474637371,3.1685,157.77,157.73,12.3341]
[1727474638579,9.74,157.77,157.7,2.5]
[1727474638781,9.74,157.75,157.7,12.24]
[1727474638980,9.74,157.76,157.71,9.74]
[1727474639183,64.79157565,157.81,157.72,9.74]
[1727474639373,64.79157565,157.81,157.76,9.74]
[1727474639573,74.53157565,157.81,157.76,9.74]
[1727474639774,3.1683,157.78,157.76,9.74]
[1727474640082,9.74,157.77,157.72,9.74]
[1727474641674,9.74,157.79,157.73,9.74]
[1727474641985,9.74,157.8,157.75,9.74]
[1727474642478,74.53157565,157.81,157.76,9.74]
[1727474642679,9.74,157.8,157.75,9.74]
[1727474643600,9.74,157.77,157.7,2.5]
[1727474643889,9.74,157.77,157.72,9.74]
[1727474644384,9.74,157.78,157.74,9.74]
[1727474645390,3.1685,157.77,157.74,9.74]
[1727474645579,9.74,157.78,157.72,3.1693]
[1727474645775,9.74,157.78,157.73,9.74]
[1727474646887,3.1685,157.76,157.73,9.74]
[1727474649289,64.79157565,157.81,157.75,9.74]
[1727474649491,1.3764,157.83,157.78,9.74]
[1727474650796,1.3808,157.87,157.81,9.74]
[1727474650994,12.4714,157.87,157.81,9.74]
[1727474651688,3.1669,157.85,157.83,9.74]
[1727474652192,1.3506,157.87,157.83,9.74]
[1727474652193,3.1666,157.86,157.83,9.74]
[1727474652784,1.3506,157.87,157.83,9.74]
[1727474653088,11.1259,157.91,157.86,9.74]
[1727474653293,9.74,157.88,157.83,9.74]
[1727474653597,9.74,157.87,157.81,9.74]
[1727474654497,3.1667,157.85,157.81,9.74]
[1727474654896,3.167,157.84,157.81,9.74]
[1727474655096,9.74,157.87,157.81,9.74]
[1727474656388,3.1669,157.85,157.81,9.74]
[1727474657195,3.1669,157.85,157.83,9.74]
[1727474657502,3.1666,157.86,157.84,9.74]
[1727474657701,9.74,157.89,157.84,9.74]
[1727474657895,11.1259,157.91,157.86,9.74]
[1727474658703,3.1663,157.87,157.86,9.74]
[1727474659201,3.1663,157.87,157.85,9.74]
[1727474660395,1.3859,157.91,157.75,3.9126]
[1727474660396,9.74,157.89,157.75,3.9126]
[1727474660695,9.74,157.87,157.83,9.74]
[1727474661609,1.3,157.9,157.81,9.74]
[1727474661610,3.1671,157.84,157.81,9.74]
[1727474662295,3.1672,157.83,157.81,9.74]
[1727474666796,1.3,157.9,157.8,9.74]
[1727474666797,9.74,157.85,157.8,9.74]
[1727474668103,1.3,157.9,157.84,9.74]
[1727474668303,11.04,157.9,157.84,9.74]
[1727474668510,3.1667,157.85,157.84,9.74]
[1727474671410,9.74,157.88,157.75,3.9126]
[1727474671707,11.04,157.9,157.85,9.74]
[1727474671907,9.74,157.88,157.75,3.9126]
[1727474672211,3.1671,157.83,157.82,9.74]
[1727474672712,3.1675,157.82,157.75,3.9126]
[1727474672917,1.3,157.9,157.82,9.74]
[1727474673116,1.3859,157.91,157.86,9.74]
[1727474673312,9.74,157.89,157.84,9.74]
[1727474673816,9.74,157.88,157.75,10.50419481]
[1727474674011,9.74,157.88,157.83,9.74]
[1727474674512,3.1664,157.87,157.83,9.74]
[1727474674712,1.3859,157.91,157.85,9.74]
[1727474675012,9.74,157.9,157.85,9.74]
[1727474675211,3.1662,157.88,157.86,9.74]
[1727474676111,3.1659,157.9,157.87,9.74]
[1727474676306,3.1659,157.9,157.75,3.9126]
[1727474676307,3.1659,157.9,157.89,9.74]
[1727474677218,1.3662,157.92,157.84,2.61]
[1727474677219,9.74,157.91,157.84,2.61]
[1727474677519,9.74,157.89,157.85,9.74]
[1727474677817,9.74,157.91,157.85,9.74]
[1727474678414,3.1663,157.88,157.86,9.74]
[1727474678622,9.74,157.91,157.86,9.74]
[1727474679016,3.1663,157.87,157.86,9.74]
[1727474679220,9.74,157.91,157.86,9.74]
[1727474680311,3.1661,157.89,157.86,9.74]
[1727474680509,11.1062,157.92,157.88,9.74]
[1727474680709,1.2516,157.94,157.82,3.17372182]
[1727474680917,9.74,157.92,157.87,9.74]
[1727474681613,9.74,157.91,157.87,9.74]
[1727474682012,9.74,157.9,157.85,9.74]
[1727474682723,1.2516,157.94,157.84,9.74]
[1727474682925,1.2516,157.94,157.86,9.74]
[1727474683114,9.74,157.91,157.86,9.74]
[1727474683724,1.2516,157.94,157.86,9.74]
[1727474683920,9.74,157.91,157.86,9.74]
[1727474684819,3.1662,157.88,157.86,9.74]
[1727474685327,1.2516,157.94,157.87,12.9062]
[1727474685512,9.74,157.92,157.87,9.74]
[1727474686219,3.1661,157.89,157.87,9.74]
[1727474686421,9.74,157.93,157.88,9.74]
[1727474686926,9.74,157.92,157.87,9.74]
[1727474687426,3.1661,157.89,157.87,9.74]
[1727474687722,9.74,157.9,157.85,9.74]
[1727474688321,9.74,157.89,157.83,3.8772]
[1727474688621,9.74,157.89,157.84,9.74]
[1727474689425,9.74,157.88,157.83,2.5928]
[1727474689621,9.74,157.88,157.76,1.2569]
[1727474689622,9.74,157.88,157.82,9.74]
[1727474690423,3.1667,157.85,157.82,9.74]
[1727474692221,3.1667,157.85,157.84,9.74]
[1727474693729,9.74,157.86,157.79,3.1678]
[1727474693925,9.74,157.86,157.82,9.74]
[1727474694725,9.74,157.85,157.8,9.74]
[1727474695028,9.74,157.83,157.77,2.5383]
[1727474695236,3.1672,157.83,157.8,9.74]
[1727474696827,9.74,157.83,157.8,9.74]
[1727474697328,3.1675,157.82,157.8,9.74]
[1727474697828,9.74,157.82,157.78,9.74]
[1727474698428,9.74,157.8,157.74,73.45424012]
[1727474698629,9.74,157.8,157.75,9.74]
[1727474698822,9.74,157.81,157.76,9.74]
[1727474699025,3.1679,157.8,157.76,9.74]
[1727474700232,9.74,157.81,157.76,9.74]
[1727474700634,9.74,157.82,157.77,9.74]
[1727474700839,9.74,157.85,157.8,9.74]
[1727474701336,9.74,157.84,157.79,9.74]
[1727474701533,3.1675,157.82,157.79,9.74]
[1727474703646,3.1677,157.81,157.79,9.74]
[1727474703946,3.1677,157.81,157.72,4.42341933]
[1727474703947,9.74,157.83,157.78,9.74]
[1727474704233,1.359,157.88,157.72,4.42341933]
[1727474704234,9.74,157.84,157.79,9.74]
[1727474704627,3.1675,157.82,157.79,9.74]
[1727474704832,3.1675,157.82,157.77,3.1683]
[1727474704833,9.74,157.81,157.77,9.74]
[1727474705027,9.74,157.81,157.72,4.42341933]
[1727474705341,9.74,157.79,157.74,9.74]
[1727474705536,9.74,157.8,157.76,9.74]
[1727474706041,3.1682,157.78,157.76,9.74]
[1727474707531,3.1682,157.78,157.74,3.1688]
[1727474707532,3.1683,157.77,157.74,9.74]
[1727474707842,9.74,157.79,157.74,9.74]
[1727474709243,3.1685,157.76,157.74,9.74]
[1727474719352,9.74,157.78,157.71,2.5844]
[1727474719543,9.74,157.78,157.74,9.74]
[1727474719852,3.1683,157.78,157.76,9.74]
[1727474720048,9.74,157.81,157.76,9.74]
[1727474720754,3.1683,157.77,157.76,9.74]
[1727474725763,1.3118,157.82,157.73,9.74]
[1727474725764,3.1686,157.76,157.73,9.74]
[1727474726052,3.1689,157.75,157.72,9.74]
[1727474726254,9.74,157.79,157.73,9.74]
[1727474727248,9.74,157.77,157.72,9.74]
[1727474728463,3.1689,157.75,157.72,9.74]
[1727474729663,3.169,157.74,157.72,9.74]
[1727474730358,3.1691,157.73,157.7,2.5]
[1727474730557,9.74,157.73,157.7,2.5]
[1727474731168,3.1695,157.71,157.7,2.5]
[1727474733373,3.1694,157.72,157.7,12.24]
[1727474744583,3.1694,157.72,157.7,2.5]
[1727474744890,3.1695,157.71,157.7,2.5]
[1727474746882,12.9095,157.71,157.7,2.5]
[1727474754492,3.1704,157.67,157.64,9.74]
[1727474754797,9.74,157.67,157.61,3.10146745]
[1727474754992,9.74,157.67,157.62,9.74]
[1727474755690,9.74,157.67,157.61,3.10146745]
[1727474755893,3.1707,157.66,157.62,12.9113]
[1727474756091,9.74,157.67,157.62,9.74]
[1727474756793,3.1709,157.65,157.62,9.74]
[1727474758396,9.74,157.7,157.64,9.74]
[1727474758592,9.74,157.7,157.66,9.74]
[1727474759594,3.1704,157.67,157.64,9.74]
[1727474763604,3.9788,157.75,157.64,9.74]
[1727474763797,9.74,157.7,157.64,9.74]
[1727474764404,3.1705,157.67,157.64,9.74]
[1727474766499,3.9788,157.75,157.66,9.74]
[1727474766700,9.74,157.7,157.66,9.74]
[1727474767899,9.74,157.7,157.65,9.74]
[1727474768105,9.74,157.67,157.62,9.74]
[1727474768602,23.0088,157.75,157.56,6.598613]
[1727474768603,9.74,157.64,157.56,6.598613]
[1727474768801,9.74,157.64,157.59,9.74]
[1727474769190,3.1714,157.62,157.59,3.1718]
[1727474769398,3.1714,157.62,157.59,12.9118]
[1727474770906,3.1714,157.62,157.6,9.74]
[1727474772010,3.1714,157.62,157.59,3.1718]
[1727474772509,9.74,157.62,157.58,1.3378]
[1727474772810,3.1719,157.6,157.56,4.4681]
[1727474772996,3.1719,157.6,157.56,11.0356]
[1727474773197,9.74,157.6,157.52,7.91599381]
[1727474773509,9.74,157.6,157.55,9.74]
[1727474773902,9.74,157.6,157.55,12.9126]
[1727474773903,3.1721,157.59,157.55,12.9126]
[1727474775912,3.1722,157.58,157.55,12.9126]
[1727474776311,9.74,157.59,157.54,3.1729]
[1727474776511,9.74,157.59,157.54,12.9129]
[1727474777807,3.1724,157.57,157.54,12.9129]
[1727474778203,9.74,157.59,157.54,12.9129]
[1727474778405,3.1722,157.58,157.54,12.9129]
[1727474780813,3.1724,157.57,157.54,12.9129]
[1727474781019,9.74,157.59,157.54,9.74]
[1727474781518,23.0513,157.68,157.55,9.74]
[1727474781718,9.74,157.6,157.55,9.74]
[1727474782915,9.74,157.6,157.55,12.9127]
[1727474782916,3.1721,157.59,157.55,12.9127]
[1727474783224,9.74,157.62,157.57,9.74]
[1727474783915,3.1719,157.6,157.57,9.74]
[1727474784820,3.1716,157.61,157.57,12.9122]
[1727474785712,3.1718,157.6,157.57,12.9122]
[1727474787015,3.1718,157.6,157.57,9.74]
[1727474787217,3.172,157.59,157.55,9.74]
[1727474787516,9.74,157.58,157.53,9.74]
[1727474787818,9.74,157.58,157.54,3.1728]
[1727474788915,3.1724,157.57,157.54,3.1728]
[1727474790121,9.74,157.57,157.52,1.3172]
[1727474790423,9.74,157.56,157.52,1.3172]
[1727474791214,3.1729,157.55,157.52,14.2304]
[1727474791416,9.74,157.56,157.52,1.3172]
[1727474791720,3.1729,157.55,157.51,12.9135]
[1727474793419,3.1731,157.54,157.51,3.1735]
[1727474793626,6.3413,157.66,157.53,9.74]
[1727474793817,9.74,157.59,157.51,1.3281]
[1727474794013,9.74,157.58,157.53,9.74]
[1727474794825,3.1727,157.56,157.53,12.913]
[1727474795221,9.74,157.56,157.51,9.74]
[1727474796324,3.1729,157.55,157.53,9.74]
[1727474798224,9.74,157.58,157.5,1.3594]
[1727474798225,9.74,157.58,157.54,9.74]
[1727474798931,3.1725,157.57,157.54,9.74]
[1727474799436,25.3713,157.66,157.55,3.1726]
[1727474799731,9.74,157.59,157.54,9.74]
[1727474800829,3.1723,157.58,157.54,12.9129]
[1727474803330,3.1723,157.58,157.54,9.74]
[1727474803531,3.1724,157.57,157.54,9.74]
[1727474805528,9.74,157.57,157.5,1.3594]
[1727474805731,9.74,157.57,157.5,11.0994]
[1727474807640,3.1731,157.54,157.5,14.273]
[1727474809848,3.1731,157.54,157.5,4.533]
[1727474810148,3.1731,157.54,157.5,14.273]
[1727474810849,3.1732,157.53,157.5,14.273]
[1727474813160,3.1732,157.53,157.5,4.533]
[1727474813555,3.1732,157.53,157.5,14.273]
[1727474814650,9.74,157.57,157.52,9.74]
[1727474815559,9.74,157.57,157.52,12.9133]
[1727474816455,3.1729,157.55,157.52,12.9133]
[1727474816655,9.74,157.57,157.52,12.9133]
[1727474818858,3.1729,157.55,157.52,12.9133]
[1727474821659,3.1729,157.55,157.41,6.3509]
[1727474821660,9.74,157.53,157.4,68.56]
[1727474821853,19.03,157.6,157.46,9.74]
[1727474821854,9.74,157.51,157.46,9.74]
[1727474823159,3.1739,157.5,157.47,3.1743]
[1727474824458,1.3331,157.54,157.42,2.6725]
[1727474824676,9.74,157.53,157.48,9.74]
[1727474824957,3.1736,157.51,157.48,9.74]
[1727474825361,3.1736,157.51,157.47,12.9143]
[1727474825557,3.1736,157.51,157.47,9.74]
[1727474826248,3.1738,157.5,157.47,9.74]
[1727474828262,3.1738,157.5,157.47,12.9143]
[1727474829676,3.1736,157.51,157.48,3.1741]
[1727474830858,68.58,157.61,157.5,9.74]
[1727474831161,1.3192,157.6,157.56,9.74]
[1727474831365,1.3192,157.6,157.56,12.9124]
[1727474831563,1.3192,157.6,157.56,9.74]
[1727474831868,3.1717,157.61,157.56,9.74]
[1727474831869,12.9117,157.61,157.56,9.74]
[1727474832167,3.1718,157.6,157.56,9.74]
[1727474832861,3.1718,157.6,157.56,12.9125]
[1727474833168,9.74,157.6,157.51,1.3415]
[1727474833467,9.74,157.6,157.54,9.74]
[1727474833966,3.1723,157.58,157.54,12.9129]
[1727474835469,3.1723,157.58,157.55,9.74]
[1727474836257,1.303,157.65,157.57,9.74]
[1727474836563,9.74,157.64,157.59,9.74]
[1727474836758,3.1717,157.61,157.59,9.74]
[1727474836955,9.74,157.62,157.58,9.74]
[1727474837159,1.303,157.65,157.51,1.3415]
[1727474837367,9.74,157.6,157.55,12.9127]
[1727474838857,3.172,157.59,157.55,12.9127]
[1727474841365,9.74,157.59,157.54,12.9129]
[1727474841755,3.1725,157.57,157.54,9.74]
[1727474842974,3.1725,157.57,157.54,12.9129]
[1727474845973,3.1725,157.57,157.55,9.74]
[1727474849875,1.303,157.65,157.56,9.74]
[1727474850182,9.74,157.64,157.6,9.74]
[1727474850570,3.1716,157.61,157.6,9.74]
[1727474853384,1.3747,157.68,157.6,9.74]
[1727474853592,1.3747,157.68,157.63,9.74]
[1727474853775,1.3747,157.68,157.62,9.74]
[1727474853776,9.74,157.67,157.62,9.74]
[1727474854175,9.74,157.66,157.61,9.74]
[1727474855783,3.1711,157.64,157.61,9.74]
[1727474856688,9.74,157.65,157.58,3.172]
[1727474856884,9.74,157.65,157.59,9.74]
[1727474857185,3.1715,157.62,157.61,9.74]
[1727474858886,3.1717,157.6,157.58,3.11609224]
[1727474859187,9.74,157.65,157.59,9.74]
[1727474859685,3.1716,157.61,157.59,9.74]
[1727474861382,3.1718,157.6,157.57,3.1723]
[1727474861582,9.74,157.65,157.6,9.74]
[1727474861885,9.74,157.65,157.61,9.74]
[1727474862391,3.1713,157.62,157.61,9.74]
[1727474868380,3.1713,157.62,157.58,6.32634049]
[1727474868585,3.1713,157.62,157.6,9.74]
[1727474871593,3.1713,157.62,157.61,9.74]
[1727474873606,1.3747,157.68,157.61,9.74]
[1727474873903,3.1707,157.65,157.64,9.74]
[1727474874489,3.171,157.64,157.63,9.74]
[1727474875398,3.1713,157.63,157.6,3.1717]
[1727474875597,9.74,157.67,157.63,9.74]
[1727474876397,3.1711,157.64,157.63,9.74]
[1727474881807,9.74,157.66,157.61,9.74]
[1727474882002,9.74,157.67,157.61,9.74]
[1727474882800,3.1713,157.63,157.61,9.74]
[1727474883604,3.1713,157.62,157.61,9.74]
[1727474884006,3.1717,157.61,157.59,9.74]
[1727474884202,9.74,157.66,157.6,9.74]
[1727474884403,9.74,157.66,157.61,9.74]
[1727474884804,3.1713,157.62,157.61,9.74]
[1727474886606,9.74,157.62,157.49,144.15319401]
[1727474886809,7.7153,157.68,157.54,9.74]
[1727474886810,9.74,157.6,157.54,9.74]
[1727474887010,3.1725,157.57,157.54,9.74]
[1727474891926,3.1727,157.56,157.54,9.74]
[1727474892236,9.74,157.58,157.53,9.74]
[1727474892725,9.74,157.55,157.51,9.74]
[1727474893432,9.74,157.55,157.49,78.80699401]
[1727474893628,9.74,157.55,157.5,9.74]
[1727474894934,3.1734,157.52,157.5,9.74]
[1727474900828,9.74,157.55,157.5,9.74]
[1727474901137,9.74,157.54,157.49,75.63319401]
[1727474902940,9.74,157.55,157.5,9.74]
[1727474903833,3.1733,157.53,157.5,9.74]
[1727474908742,9.74,157.55,157.5,9.74]
[1727474908942,9.74,157.54,157.49,85.37319401]
[1727474909135,3.1737,157.51,157.49,85.37319401]
[1727474909741,2.6575,157.59,157.41,2.6502]
[1727474909942,2.6575,157.59,157.47,9.74]
[1727474909943,9.74,157.53,157.47,9.74]
[1727474910846,2.6575,157.59,157.51,9.74]
[1727474911043,9.74,157.56,157.51,9.74]
[1727474912446,3.1735,157.52,157.49,9.74]
[1727474914351,9.74,157.54,157.48,3.174]
[1727474914542,9.74,157.54,157.48,12.914]
[1727474915852,3.1735,157.52,157.48,12.914]
[1727474917460,3.1735,157.52,157.49,3.174]
[1727474917954,3.1735,157.52,157.49,12.914]
[1727474921649,1.3202,157.59,157.51,9.74]
[1727474921854,11.0602,157.59,157.55,9.74]
[1727474922045,11.0602,157.59,157.56,9.74]
[1727474922350,11.0656,157.61,157.56,9.74]
[1727474923255,3.1721,157.59,157.57,9.74]
[1727474923859,3.1721,157.58,157.57,9.74]
[1727474925056,3.1721,157.58,157.56,9.74]
[1727474928652,3.1723,157.57,157.54,3.1729]
[1727474928955,3.1723,157.57,157.56,9.74]
[1727474930261,3.1723,157.57,157.53,6.38547326]
[1727474930464,3.1723,157.57,157.55,9.74]
[1727474933172,3.1723,157.58,157.56,9.74]
[1727474933561,1.3817,157.63,157.56,9.74]
[1727474933870,3.1719,157.6,157.58,9.74]
[1727474934467,1.3817,157.63,157.59,9.74]
[1727474935069,3.1717,157.6,157.59,9.74]
[1727474943864,3.1717,157.6,157.57,3.1723]
[1727474943865,9.74,157.62,157.56,9.74]
[1727474944063,1.3817,157.63,157.6,9.74]
[1727474944268,3.1711,157.64,157.61,9.74]
[1727474945769,3.1712,157.63,157.62,9.74]
[1727474946379,3.171,157.64,157.62,9.74]
[1727474946774,66.6902827,157.65,157.62,9.74]
[1727474947501,3.1709,157.64,157.62,9.74]
[1727474947687,66.6902827,157.65,157.62,9.74]
[1727474948998,3.1711,157.63,157.62,9.74]
[1727474952098,3.1711,157.63,157.61,9.74]
[1727474953097,76.4302827,157.65,157.52,6.36934407]
[1727474953401,9.74,157.64,157.59,9.74]
[1727474953587,9.74,157.64,157.6,9.74]
[1727474953786,3.1717,157.61,157.6,9.74]
[1727474957806,3.1714,157.62,157.6,9.74]
[1727474958008,1.3083,157.68,157.61,9.74]
[1727474958203,1.3083,157.68,157.65,9.74]
[1727474959905,1.3083,157.68,157.61,3.19632645]
[1727474959906,11.0483,157.68,157.64,9.74]
[1727474961916,3.1709,157.65,157.64,9.74]
[1727474968918,1.3083,157.68,157.64,9.74]
[1727474969119,1.3903,157.73,157.67,9.74]
[1727474969424,1.2823,157.74,157.7,9.74]
[1727474970817,3.1695,157.71,157.7,9.74]
[1727474971122,1.2823,157.74,157.69,9.74]
[1727474971823,3.1697,157.7,157.69,9.74]
[1727474973418,9.74,157.71,157.67,9.74]
[1727474974116,9.74,157.71,157.63,3.1711]
[1727474974117,3.1705,157.67,157.63,3.1711]
[1727474974316,9.74,157.71,157.66,9.74]
[1727474974514,9.74,157.71,157.6,1.3107]
[1727474974719,9.74,157.69,157.6,1.3107]
[1727474975026,9.74,157.67,157.63,9.74]
[1727474975820,3.1709,157.64,157.63,9.74]
[1727474978221,3.10962166,157.92,157.63,9.74]
[1727474978421,9.74,157.78,157.72,9.74]
[1727474978628,3.1691,157.73,157.72,9.74]
[1727474979017,9.74,157.74,157.65,2.6443]
[1727474979220,3.1697,157.71,157.69,9.74]
[1727474981521,9.74,157.76,157.7,9.74]
[1727474983028,3.1694,157.72,157.7,9.74]
[1727474986821,3.1695,157.71,157.7,9.74]
[1727475002136,3.1698,157.7,157.67,3.1878399]
[1727475002434,3.1698,157.7,157.69,9.74]
[1727475012542,3.1696,157.71,157.69,9.74]
[1727475012743,3.1696,157.71,157.7,9.74]
[1727475014536,3.1698,157.7,157.67,6.42061726]
[1727475014742,3.1698,157.7,157.67,3.1703]
[1727475015045,3.1698,157.7,157.69,9.74]
[1727475025161,3.1695,157.72,157.69,9.74]
[1727475025458,3.1695,157.72,157.71,9.74]
[1727475025650,2.7058,157.79,157.71,12.9094]
[1727475025855,2.7058,157.79,157.76,9.74]
[1727475027769,3.1683,157.77,157.76,9.74]
[1727475043987,3.169,157.74,157.72,1.2764]
[1727475044291,3.169,157.74,157.73,9.74]
[1727475049176,3.169,157.74,157.72,1.2764]
[1727475049882,3.169,157.74,157.73,9.74]
[1727475058385,1.3335,157.79,157.73,9.74]
[1727475058587,1.3335,157.79,157.72,1.2764]
[1727475058588,1.3335,157.79,157.77,9.74]
[1727475059494,3.1681,157.78,157.77,9.74]
[1727475077310,3.168,157.79,157.77,9.74]
[1727475077507,3.168,157.79,157.75,3.1687]
[1727475077508,3.168,157.79,157.78,9.74]
[1727475085199,3.1678,157.8,157.78,9.74]
[1727475085415,3.1678,157.8,157.79,9.74]
[1727475086414,3.1674,157.82,157.79,9.74]
[1727475086615,3.1674,157.82,157.81,9.74]
[1727475089124,3.1672,157.83,157.81,9.74]
[1727475089315,3.1672,157.83,157.82,9.74]
[1727475099027,9.74,157.86,157.73,1.3419]
[1727475099231,9.74,157.85,157.81,9.74]
[1727475099923,3.1673,157.82,157.81,9.74]
[1727475106732,9.74,157.84,157.73,1.3419]
[1727475106924,9.74,157.84,157.78,9.74]
[1727475107126,1.303,157.83,157.78,9.74]
[1727475108432,3.1679,157.79,157.78,9.74]
[1727475121841,9.74,157.82,157.74,3.1689]
[1727475122045,9.74,157.81,157.75,9.74]
[1727475122250,9.74,157.8,157.75,9.74]
[1727475122438,3.1687,157.76,157.75,9.74]
[1727475122942,3.1689,157.75,157.74,9.74]
[1727475124442,11.0175,157.81,157.74,9.74]
[1727475124643,11.0175,157.81,157.77,9.74]
[1727475125136,1.2775,157.81,157.78,9.74]
[1727475125337,1.303,157.83,157.8,9.74]
[1727475125637,3.1675,157.81,157.8,9.74]